bitfinex/quotes_ETHUSD_20220120
["timestamp","ask_amount","ask_price","bid_price","bid_amount"]
[1642705616217,0.00113684,3219.8,3219.1,1.14947175]
[1642705616620,0.00113684,3219.8,3219.2,0.0022737]
[1642705617023,0.00113684,3219.8,3219.2,0.3752737]
[1642705617220,0.00113684,3219.8,3219.6,1.04652397]
[1642705617423,0.00113684,3219.8,3219.7,2.72556076]
[1642705617622,0.00113684,3219.8,3219.7,1.373]
[1642705617867,0.00113684,3219.8,3219.7,1.673]
[1642705618265,0.00113684,3219.8,3219.7,2.44932]
[1642705618864,0.00113684,3219.8,3219.7,2.74932]
[1642705619265,0.00113684,3219.8,3219.7,4.79932]
[1642705619465,0.00113684,3219.8,3219.7,5.09932]
[1642705620469,0.00113684,3219.8,3219.7,7.83781207]
[1642705620669,0.00113684,3219.8,3219.7,5.09932]
[1642705620868,0.00113684,3219.8,3219.7,7.82333347]
[1642705621068,0.00696751,3220.6,3220.0,0.77617]
[1642705621269,0.00696751,3220.6,3220.5,1.12576068]
[1642705621469,0.00696751,3220.6,3220.5,2.56356068]
[1642705622017,0.00696751,3220.6,3220.5,1.4378]
[1642705622220,5.55696751,3220.6,3220.5,1.4378]
[1642705622416,5.55696751,3220.6,3219.6,3.12174]
[1642705622819,0.00397897,3220.5,3219.6,3.12174]
[1642705623019,0.00397897,3220.5,3219.8,1.09544033]
[1642705623219,0.00341054,3220.4,3219.8,1.09544033]
[1642705623623,0.00284212,3220.3,3219.8,1.39544033]
[1642705624021,0.0022737,3220.2,3219.8,1.39544033]
[1642705624422,0.00170527,3220.1,3219.9,0.77628]
[1642705624827,0.00696751,3220.6,3220.3,0.94388296]
[1642705625221,0.00397897,3220.5,3220.3,0.94388296]
[1642705625666,0.00696751,3220.6,3220.3,0.94388296]
[1642705625667,0.00341054,3220.4,3220.3,0.94388296]
[1642705626668,0.00341054,3220.4,3220.0,1.2257]
[1642705626867,0.00341054,3220.4,3220.0,1.5257]
[1642705627067,0.00284212,3220.3,3220.0,1.5257]
[1642705627475,0.0022737,3220.2,3220.0,1.5257]
[1642705627869,0.00170527,3220.1,3220.0,1.5257]
[1642705631113,0.00170527,3220.1,3220.0,2.5257]
[1642705631518,2.59537799,3220.5,3220.0,2.5257]
[1642705631918,0.00170527,3220.4,3220.0,2.5257]
[1642705632418,0.00113685,3220.3,3220.1,0.05892892]
[1642705632870,0.0022737,3220.5,3220.1,0.05892892]
[1642705633267,0.0022737,3220.5,3220.0,2.5257]
[1642705634069,0.0022737,3220.5,3220.0,1.5257]
[1642705634269,0.0022737,3220.5,3220.1,1.0]
[1642705634470,0.0022737,3220.5,3220.0,1.5257]
[1642705634669,0.0022737,3220.5,3220.0,1.2257]
[1642705634868,0.0022737,3220.5,3219.6,0.3]
[1642705635068,0.0022737,3220.5,3219.5,2.515]
[1642705635274,0.0022737,3220.5,3219.7,0.00227369]
[1642705635468,0.0022737,3220.5,3219.6,0.00284211]
[1642705635670,0.0022737,3220.5,3219.6,1.11522226]
[1642705636068,0.0022737,3220.5,3219.7,0.00227369]
[1642705637215,0.0022737,3220.5,3219.6,0.00284211]
[1642705637818,0.0022737,3220.5,3219.8,1.12604687]
[1642705638217,0.0022737,3220.5,3219.9,0.00113684]
[1642705638818,0.0022737,3220.5,3219.6,0.00284211]
[1642705639418,0.0022737,3220.5,3219.6,0.86831988]
[1642705639619,2.31374819,3220.5,3219.6,0.86831988]
[1642705639818,2.31374819,3220.5,3219.7,0.00227369]
[1642705640379,2.31374819,3220.5,3219.6,0.00284211]
[1642705640380,0.3,3220.4,3219.6,0.00284211]
[1642705640564,0.0125975,3220.0,3219.6,0.00284211]
[1642705640766,0.7892075,3220.0,3219.6,0.00284211]
[1642705640969,2.51113276,3219.9,3219.6,0.00284211]
[1642705641369,2.51113276,3219.9,3219.1,0.00568423]
[1642705641370,1.5633896,3219.8,3219.1,0.00568423]
[1642705641572,2.51113276,3219.7,3219.1,0.00568423]
[1642705641771,0.77673,3219.7,3219.1,0.00568423]
[1642705642172,0.67679,3219.7,3219.1,0.00568423]
[1642705642372,0.62575,3219.7,3219.1,0.00568423]
[1642705643575,0.77671,3219.5,3219.1,0.00568423]
[1642705644513,0.7509,3219.5,3219.1,0.00351423]
[1642705644715,0.74476,3219.5,3219.1,0.00351423]
[1642705645316,0.74476,3219.5,3218.6,1.08776369]
[1642705645522,4.44575,3219.7,3218.7,0.00578793]
[1642705646317,2.35996224,3219.6,3218.7,0.00578793]
[1642705648069,4.44575,3219.7,3218.7,0.00578793]
[1642705648266,3.82,3219.7,3218.7,0.00578793]
[1642705648468,2.20018538,3219.6,3218.8,0.03802463]
[1642705648667,2.20018538,3219.6,3218.7,0.00578793]
[1642705648866,2.20018538,3219.6,3218.9,0.00465108]
[1642705649066,2.20018538,3219.6,3218.7,0.00578793]
[1642705649467,2.21404643,3219.6,3218.7,0.00578793]
[1642705651371,3.82,3219.7,3218.7,0.00578793]
[1642705651611,2.63658787,3219.6,3218.7,0.00578793]
[1642705652118,2.63658787,3219.6,3218.9,0.77655]
[1642705652512,2.63658787,3219.6,3219.0,0.00408265]
[1642705653518,2.63650069,3219.5,3219.0,0.00408265]
[1642705653718,2.26548352,3220.0,3219.0,0.00408265]
[1642705653918,2.63758261,3219.9,3219.0,0.00408265]
[1642705655780,2.51113276,3219.8,3219.0,0.00408265]
[1642705655974,2.63654945,3219.7,3219.0,0.00408265]
[1642705656372,2.63758261,3219.9,3219.0,0.00408265]
[1642705656573,2.51113276,3219.8,3219.0,0.00408265]
[1642705656973,2.63654945,3219.7,3219.0,0.00408265]
[1642705657172,2.63654945,3219.7,3219.0,0.00090265]
[1642705657572,0.00250789,3219.6,3219.0,0.30090265]
[1642705657773,0.00250789,3219.6,3219.0,0.3]
[1642705657971,0.00193946,3219.5,3218.9,0.00147108]
[1642705658377,0.00137104,3219.4,3218.9,0.00147108]
[1642705658771,2.6365047,3219.8,3218.9,0.00147108]
[1642705658772,0.00080262,3219.3,3218.9,0.00147108]
[1642705659221,2.6365047,3219.6,3218.9,0.00147108]
[1642705659423,0.00307631,3219.7,3218.9,0.00147108]
[1642705659624,0.00193946,3219.5,3218.9,0.00147108]
[1642705659827,2.63901259,3219.6,3218.9,0.00147108]
[1642705660023,0.00137104,3219.4,3218.9,0.00147108]
[1642705660223,2.63844416,3219.5,3218.9,0.00147108]
[1642705660425,0.00080262,3219.3,3218.9,0.00147108]
[1642705660627,0.00137104,3219.4,3218.9,0.00147108]
[1642705660824,2.29466959,3219.7,3218.9,0.00147108]
[1642705661032,0.00080262,3219.3,3218.9,0.00147108]
[1642705661226,2.29466959,3219.7,3218.9,0.00147108]
[1642705661227,2.6390183,3219.6,3218.9,0.00147108]
[1642705661427,2.2117811,3219.5,3218.9,0.00147108]
[1642705661629,2.21372056,3219.5,3218.9,0.00147108]
[1642705661828,2.63798983,3219.4,3218.9,0.00147108]
[1642705662027,2.33853738,3219.3,3218.9,0.00147108]
[1642705662231,2.63674139,3219.2,3218.9,0.00147108]
[1642705662429,5.26921416,3219.1,3218.9,0.00147108]
[1642705662628,2.35,3219.0,3218.9,0.00147108]
[1642705663275,2.35,3219.0,3218.4,0.0043132]
[1642705663874,0.00080262,3219.3,3218.4,0.0043132]
[1642705664081,0.00080262,3219.3,3218.5,0.44403295]
[1642705664276,0.00080262,3219.3,3218.5,0.673]
[1642705664475,0.00080262,3219.3,3218.6,0.00317635]
[1642705664677,0.00080262,3219.3,3218.7,0.373]
[1642705664875,0.00080262,3219.3,3218.7,1.4496]
[1642705665075,0.00080262,3219.3,3218.8,0.0020395]
[1642705665277,0.00080262,3219.3,3218.8,0.3750395]
[1642705665676,0.00080262,3219.3,3218.9,0.00147108]
[1642705665876,0.00080262,3219.3,3219.0,0.373]
[1642705666077,0.00080262,3219.3,3219.0,0.673]
[1642705670121,0.00080262,3219.3,3219.0,0.373]
[1642705670772,2.63751987,3219.3,3218.9,0.00147108]
[1642705670968,2.64379287,3219.2,3218.9,0.00147108]
[1642705671169,0.00080262,3219.3,3218.6,0.00317635]
[1642705672074,2.63770251,3219.3,3218.6,0.00317635]
[1642705672276,2.65499974,3219.2,3218.6,0.00317635]
[1642705672475,2.63689989,3219.1,3218.6,0.00317635]
[1642705672676,2.36265961,3219.0,3218.6,0.00317635]
[1642705672877,2.20217537,3219.0,3218.6,0.00317635]
[1642705673075,2.37514215,3219.3,3218.6,0.00317635]
[1642705673474,2.63686393,3219.2,3218.6,0.00317635]
[1642705674320,0.00080262,3219.3,3218.6,0.00317635]
[1642705674715,2.63761228,3219.3,3218.6,0.00317635]
[1642705675917,4.84584203,3219.3,3218.6,0.00317635]
[1642705676119,2.63680966,3219.2,3218.6,0.00317635]
[1642705676323,0.00080262,3219.3,3218.6,0.00317635]
[1642705676324,2.63680966,3219.1,3218.6,0.00317635]
[1642705676519,2.63680966,3219.0,3218.6,0.00317635]
[1642705676718,2.29059651,3219.3,3218.6,0.00317635]
[1642705676924,2.63686643,3219.2,3218.6,0.00317635]
[1642705677121,2.63686643,3219.1,3218.6,0.00317635]
[1642705677321,2.6359217,3219.0,3218.6,0.00317635]
[1642705677521,2.22130914,3219.3,3218.6,0.00317635]
[1642705677723,0.00080262,3219.3,3218.6,0.00317635]
[1642705678572,0.00080262,3219.3,3218.6,0.93217072]
[1642705678771,0.00080262,3219.3,3218.7,0.373]
[1642705678975,0.00080262,3219.3,3218.7,0.37560793]
[1642705679172,0.00080262,3219.3,3218.8,0.0020395]
[1642705679373,0.00080262,3219.3,3218.9,0.373]
[1642705679773,0.00080262,3219.3,3219.0,0.00090265]
[1642705682820,0.00080262,3219.3,3218.6,0.00317635]
[1642705686073,0.00080262,3219.3,3218.8,0.00728523]
[1642705686476,0.00080262,3219.3,3218.9,0.00147108]
[1642705691127,0.00080262,3219.3,3219.1,0.00241655]
[1642705692128,2.28821852,3219.5,3219.1,0.00241655]
[1642705692527,0.00137104,3219.4,3219.2,0.03690013]
[1642705692734,0.00137104,3219.4,3219.1,0.00241655]
[1642705692974,0.00080262,3219.3,3219.1,0.00241655]
[1642705696077,0.00080262,3219.3,3219.2,0.00450916]
[1642705697718,2.28031255,3219.3,3219.2,0.00450916]
[1642705697927,2.63765286,3219.3,3219.2,0.00450916]
[1642705698320,0.00080262,3219.3,3219.2,0.00450916]
[1642705698520,2.23563266,3219.3,3219.2,0.00450916]
[1642705698721,4.86179901,3219.3,3219.2,0.00450916]
[1642705698921,2.63765286,3219.3,3219.2,0.00450916]
[1642705699120,2.27799358,3219.3,3219.2,0.00450916]
[1642705699320,4.92253074,3219.3,3219.2,0.00450916]
[1642705699521,2.63765286,3219.3,3219.2,0.00450916]
[1642705699723,4.39559928,3219.3,3219.2,0.00450916]
[1642705701070,2.63765286,3219.3,3219.2,0.00450916]
[1642705701268,0.00080262,3219.3,3219.2,0.00466928]
[1642705701467,3.60080262,3219.3,3219.2,0.00466928]
[1642705701674,6.23765286,3219.3,3219.2,0.00466928]
[1642705701873,2.63685024,3219.3,3219.2,0.00466928]
[1642705702372,1.75789194,3219.3,3219.2,0.00466928]
[1642705702572,4.39474218,3219.3,3219.2,0.00466928]
[1642705703574,2.63685024,3219.3,3219.2,0.00466928]
[1642705704116,2.63685024,3219.6,3219.2,0.00466928]
[1642705704418,2.63685024,3219.5,3219.2,0.00466928]
[1642705704619,2.63685024,3219.4,3219.2,0.00466928]
[1642705704821,2.63685024,3219.3,3219.2,0.00466928]
[1642705705619,2.63855551,3219.6,3219.2,0.00466928]
[1642705706120,2.63855551,3219.6,3219.3,0.00225281]
[1642705706321,1.75780767,3219.5,3219.3,0.00225281]
[1642705706520,2.63685024,3219.4,3219.3,0.00225281]
[1642705707521,2.63855551,3219.6,3219.3,0.00225281]
[1642705708174,4.89430543,3219.6,3219.3,0.00225281]
[1642705708377,2.63685024,3219.5,3219.3,0.00225281]
[1642705708571,2.26310499,3219.4,3219.3,0.00225281]
[1642705708773,4.89995523,3219.4,3219.3,0.00225281]
[1642705709772,6.65793565,3219.4,3219.3,0.00225281]
[1642705710173,10.61315159,3219.4,3219.3,0.00225281]
[1642705711080,10.61315159,3219.4,3219.3,0.0046682]
[1642705711273,6.65793565,3219.4,3219.3,0.0046682]
[1642705711919,4.39483066,3219.4,3219.3,0.0046682]
[1642705712319,4.34483066,3219.4,3219.3,0.0046682]
[1642705712722,6.63462159,3219.4,3219.3,0.0046682]
[1642705712923,6.61686732,3219.4,3219.3,0.0046682]
[1642705713325,4.34483066,3219.4,3219.3,0.0046682]
[1642705714324,10.8000466,3219.4,3219.3,0.0046682]
[1642705714924,8.3000466,3219.4,3219.3,0.0046682]
[1642705715125,4.34483066,3219.4,3219.3,0.0046682]
[1642705716173,4.34483066,3219.4,3219.3,0.00692133]
[1642705721217,4.34483066,3219.4,3219.3,0.00241316]
[1642705726175,4.34483066,3219.4,3219.2,0.00451008]
[1642705726176,4.34483066,3219.4,3219.2,0.00692324]
[1642705726373,1.75798042,3219.4,3219.2,0.00692324]
[1642705726626,1.75798042,3219.3,3219.2,0.00692324]
[1642705727726,1.75798042,3219.4,3219.2,0.00692324]
[1642705731167,1.75798042,3219.4,3219.2,0.00241316]
[1642705732370,2.63683183,3219.3,3219.2,0.00241316]
[1642705732772,4.39481225,3219.3,3219.2,0.00241316]
[1642705736025,4.39481225,3219.3,3219.1,0.00471008]
[1642705736227,2.63683183,3219.2,3219.1,0.00471008]
[1642705736630,4.39481225,3219.2,3219.1,0.00584693]
[1642705740272,4.40774873,3219.2,3219.1,0.00584693]
[1642705741372,6.4673649,3219.2,3219.1,0.00584693]
[1642705743033,28.0573649,3219.2,3219.1,0.00584693]
[1642705743233,26.50296467,3219.2,3219.1,0.00584693]
[1642705743431,8.36296467,3219.2,3219.1,0.00584693]
[1642705743731,4.40774873,3219.2,3219.1,0.00584693]
[1642705744329,4.39481225,3219.2,3219.1,0.00584693]
[1642705744941,8.35002819,3219.2,3219.1,0.00584693]
[1642705746677,4.39481225,3219.2,3219.1,0.00584693]
[1642705766529,4.39481225,3219.2,3219.1,0.00471008]
[1642705775972,4.393782,3219.2,3219.1,0.80991008]
[1642705776277,4.393782,3219.2,3219.1,1.10991008]
[1642705776675,1.75798042,3219.2,3219.1,1.10991008]
[1642705776875,2.10936482,3220.0,3219.1,1.10991008]
[1642705777079,2.10936482,3220.0,3219.2,1.19249167]
[1642705777275,0.00341054,3219.9,3219.8,1.09833218]
[1642705778078,1.76111786,3219.9,3219.8,1.09833218]
[1642705778883,1.76111786,3219.9,3219.3,1.0]
[1642705779125,1.76111786,3219.9,3219.3,0.673]
[1642705779325,1.76054943,3219.8,3219.3,0.673]
[1642705779730,0.00227369,3219.7,3219.3,0.673]
[1642705779928,0.00227369,3219.7,3219.4,1.08710544]
[1642705780133,1.75770732,3219.8,3219.4,1.08710544]
[1642705780134,1.75164792,3219.8,3219.4,1.08710544]
[1642705780530,5.8687,3220.1,3219.4,1.08710544]
[1642705780729,5.8687,3220.1,3219.6,1.44777766]
[1642705780933,0.00227369,3220.0,3219.6,1.44777766]
[1642705781232,0.00170527,3219.9,3219.6,1.44777766]
[1642705781631,0.00113684,3219.8,3219.6,1.44777766]
[1642705783480,0.00113684,3219.8,3219.5,0.00240977]
[1642705786082,0.00113684,3219.8,3219.7,0.00448814]
[1642705791185,0.00113684,3219.8,3219.7,0.00240638]
[1642705796036,0.00113684,3219.8,3219.6,0.00465466]
[1642705798982,2.63764914,3219.8,3219.6,0.00465466]
[1642705800983,1.75781037,3219.7,3219.6,0.00465466]
[1642705801186,4.39432267,3219.7,3219.6,0.00240638]
[1642705803425,2.6365123,3219.7,3219.6,0.00240638]
[1642705804824,1.75784026,3219.7,3219.6,0.00240638]
[1642705805030,4.39435256,3219.7,3219.6,0.00240638]
[1642705806169,4.39435256,3219.7,3219.5,0.00477884]
[1642705806371,2.6365123,3219.6,3219.5,0.00477884]
[1642705807374,4.39435256,3219.6,3219.5,0.00477884]
[1642705809826,2.6365123,3219.6,3219.5,0.00477884]
[1642705810029,0.00113684,3219.8,3219.5,0.00477884]
[1642705815982,0.00113684,3219.8,3219.7,0.00487842]
[1642705816381,2.6365123,3219.9,3219.7,0.00487842]
[1642705817230,4.89147502,3220.1,3219.7,0.00487842]
[1642705817434,1.75773984,3219.8,3219.7,0.00487842]
[1642705817936,4.39425214,3219.8,3219.7,0.00487842]
[1642705821176,4.39425214,3219.8,3219.7,0.00488348]
[1642705822579,4.34425214,3219.8,3219.7,0.00488348]
[1642705828300,0.00284211,3220.1,3219.7,7.94950052]
[1642705828606,0.00227369,3220.0,3219.9,1.07598644]
[1642705828797,0.00227369,3220.0,3219.9,1.63715726]
[1642705828996,0.00227369,3220.0,3219.9,7.56765726]
[1642705829497,0.00227369,3220.0,3219.9,11.33981633]
[1642705829898,0.00227369,3220.0,3219.9,12.50015966]
[1642705830098,0.00227369,3220.0,3219.9,13.27636966]
[1642705831000,0.00227369,3220.0,3219.9,13.28159432]
[1642705831203,0.00227369,3220.0,3219.9,13.28439984]
[1642705832427,2.10861604,3221.1,3220.3,0.77616]
[1642705832627,2.10861604,3221.1,3220.4,0.373]
[1642705832829,0.00568423,3221.0,3220.4,0.373]
[1642705833232,0.00511581,3220.9,3220.4,0.373]
[1642705833633,0.00454739,3220.8,3220.5,2.6865636]
[1642705833839,0.00454739,3220.8,3220.6,0.373]
[1642705834035,0.00397896,3220.7,3220.6,2.14914]
[1642705834232,0.00397896,3220.7,3220.6,1.14914]
[1642705834433,0.00397896,3220.7,3220.6,4.9575879]
[1642705834733,0.00397896,3220.7,3220.6,3.29314]
[1642705834931,0.00397896,3220.7,3220.6,7.44314]
[1642705835133,2.10837736,3221.7,3221.4,1.04656558]
[1642705835392,2.10837736,3221.7,3221.5,0.373]
[1642705835584,0.00511582,3221.6,3221.5,0.373]
[1642705836185,0.00511582,3221.6,3221.5,0.381]
[1642705838388,0.00511582,3221.6,3221.5,0.681]
[1642705839828,0.00511582,3221.6,3221.5,0.308]
[1642705840529,0.00511582,3221.6,3221.5,0.755]
[1642705841130,0.00511582,3221.6,3221.5,0.76213785]
[1642705842433,7.24301594,3222.4,3221.5,0.76213785]
[1642705842434,2.32915225,3222.3,3221.6,6.15]
[1642705842641,3.81390453,3223.2,3221.7,4.3051852]
[1642705842642,0.02327045,3223.1,3221.7,4.3051852]
[1642705842897,11.12393819,3223.2,3221.7,6.85030418]
[1642705842898,0.00113684,3221.8,3221.7,6.85030418]
[1642705843286,0.00852635,3223.1,3221.7,12.43930418]
[1642705843485,0.00852635,3223.1,3221.9,5.589]
[1642705843686,1.10686941,3222.5,3222.0,1.447]
[1642705843885,1.10686941,3222.5,3222.0,1.747]
[1642705844086,5.62777032,3223.2,3222.0,1.747]
[1642705844087,0.00454738,3222.4,3222.0,1.747]
[1642705844393,0.00397896,3222.3,3222.1,1.1305]
[1642705844587,0.00397896,3222.3,3222.2,3.697]
[1642705844788,0.77582,3223.1,3222.2,1.54814671]
[1642705844987,5.62777032,3223.2,3222.3,1.0]
[1642705845187,5.62777032,3223.2,3222.4,0.447]
[1642705845188,1.22658306,3222.9,3222.4,0.447]
[1642705845389,1.22658306,3222.9,3222.5,0.447]
[1642705845588,0.00682108,3222.8,3222.6,0.447]
[1642705845886,0.00625265,3222.7,3222.6,0.747]
[1642705848140,5.62777032,3223.2,3222.6,0.747]
[1642705848141,3.50155416,3223.2,3222.8,0.06173399]
[1642705848340,2.5293952,3223.1,3222.9,0.447]
[1642705848539,2.63635768,3223.1,3222.9,0.447]
[1642705848835,2.63635768,3223.1,3222.5,0.447]
[1642705849035,0.0022737,3223.1,3222.5,0.747]
[1642705849236,1.20637008,3223.0,3222.5,0.747]
[1642705849636,0.00113685,3222.9,3222.5,0.747]
[1642705850484,2.33207795,3222.9,3222.5,0.747]
[1642705850884,0.00113685,3222.9,3222.5,0.747]
[1642705851084,2.25862174,3222.9,3222.5,0.747]
[1642705851282,2.25862174,3222.9,3222.7,0.00478438]
[1642705851885,2.21231976,3222.9,3222.7,0.00478438]
[1642705852290,2.20078658,3222.9,3222.7,0.00478438]
[1642705852686,0.00113685,3222.9,3222.7,0.00478438]
[1642705853091,2.21106904,3222.9,3222.7,0.00478438]
[1642705853290,0.00113685,3222.9,3222.7,0.00478438]
[1642705856037,0.00113685,3222.9,3222.8,0.00231242]
[1642705856239,2.20134653,3222.9,3222.8,0.00231242]
[1642705856443,2.20134653,3222.9,3222.5,0.00590186]
[1642705856444,2.21336899,3222.9,3222.5,0.00590186]
[1642705856644,3.41037352,3222.8,3222.5,0.00590186]
[1642705856839,5.172321,3222.7,3222.5,0.00590186]
[1642705857039,0.77592,3222.8,3222.5,0.00590186]
[1642705857243,5.17246299,3222.7,3222.5,0.00590186]
[1642705857439,0.77592,3222.8,3221.1,0.447]
[1642705857440,0.01588378,3222.4,3221.1,0.447]
[1642705857642,0.0123738,3221.9,3220.8,8.3602]
[1642705857897,0.0123738,3221.9,3221.2,0.00852635]
[1642705858094,0.0125684,3221.9,3221.2,0.00852635]
[1642705858492,2.63527725,3221.8,3221.2,0.00852635]
[1642705858693,2.53786748,3221.7,3221.2,0.00852635]
[1642705858891,0.77624,3221.5,3221.2,0.00852635]
[1642705859900,2.49090156,3221.4,3221.2,0.00852635]
[1642705861637,0.77624,3221.5,3221.2,0.00852635]
[1642705861840,0.0125684,3221.9,3221.2,0.00852635]
[1642705862044,0.01588378,3222.4,3221.3,0.0627777]
[1642705862242,2.22500574,3222.1,3221.3,0.05588143]
[1642705862445,2.22500574,3222.1,3221.4,0.0073895]
[1642705862643,2.63510956,3222.0,3221.4,0.0073895]
[1642705862840,2.63510956,3222.0,3221.3,0.00795793]
[1642705862841,2.30344277,3221.9,3221.3,0.00795793]
[1642705863242,1.48615718,3222.0,3221.3,0.00795793]
[1642705863441,2.34750723,3222.1,3221.3,0.84757976]
[1642705863641,0.01588378,3222.4,3221.3,0.84757976]
[1642705863642,0.01588378,3222.4,3221.4,3.22536936]
[1642705863843,0.01588378,3222.4,3221.4,3.23275886]
[1642705864041,0.01588378,3222.4,3221.5,1.00682108]
[1642705864242,2.63482611,3222.3,3221.6,0.447]
[1642705864441,2.63482611,3222.3,3221.6,0.45325265]
[1642705864442,4.02105024,3222.3,3221.6,0.45325265]
[1642705864642,0.01588378,3222.4,3221.7,0.00568423]
[1642705864843,2.63486309,3222.3,3221.8,0.447]
[1642705865241,2.63486309,3222.3,3221.9,0.00454738]
[1642705865482,3.41089309,3222.3,3221.9,0.45154738]
[1642705865682,1.98609125,3222.3,3221.9,0.45154738]
[1642705865884,1.98609125,3222.3,3222.0,0.00397896]
[1642705866582,2.63486448,3222.2,3222.0,0.00397896]
[1642705866983,2.41286683,3222.2,3222.0,0.00397896]
[1642705867887,1.98609125,3222.3,3222.0,0.00397896]
[1642705868094,2.76220125,3222.3,3222.0,0.00397896]
[1642705868588,2.76220125,3222.3,3221.9,0.00223685]
[1642705868589,0.15536,3222.1,3221.9,0.00223685]
[1642705868790,0.46740172,3222.1,3221.9,0.00223685]
[1642705868988,11.6,3222.0,3220.6,2.52742424]
[1642705869237,1.53211409,3221.2,3220.5,0.447]
[1642705869440,0.77624,3221.5,3220.9,0.00625266]
[1642705871245,6.07796717,3221.2,3221.1,0.0025916]
[1642705871447,8.42322717,3221.2,3221.1,0.0025916]
[1642705871647,8.72322717,3221.2,3221.1,1e-08]
[1642705871843,7.54526,3221.2,3221.1,1e-08]
[1642705872045,7.54526,3221.2,3220.1,5.169]
[1642705872249,0.7765284,3220.8,3220.1,5.169]
[1642705872446,2.3294684,3220.8,3220.2,0.01023162]
[1642705872646,1.55294,3220.8,3220.2,0.01023162]
[1642705873327,1.19012364,3220.6,3220.2,0.01023162]
[1642705873728,1.96659364,3220.6,3220.2,0.01023162]
[1642705874127,1.96659364,3220.6,3219.8,0.01250532]
[1642705874328,21.05879364,3220.6,3219.8,0.01250532]
[1642705874532,21.07171656,3220.6,3219.6,0.01364216]
[1642705874728,21.07171656,3220.6,3219.4,6.3853]
[1642705874729,1.54873738,3219.7,3219.5,0.01421059]
[1642705874929,2.53253738,3219.7,3219.5,0.01421059]
[1642705875634,0.9838,3219.7,3219.5,0.01421059]
[1642705876429,0.9838,3219.7,3217.5,0.05]
[1642705876635,0.77674,3219.4,3218.7,6.13131059]
[1642705876835,0.77674,3219.4,3218.8,0.00397896]
[1642705877638,3.30659533,3220.3,3219.4,6.15]
[1642705877844,8.36184225,3220.9,3219.4,6.15]
[1642705877845,10.30229267,3223.0,3219.5,6.15]
[1642705878044,9.29617608,3225.8,3222.8,0.32426492]
[1642705878252,0.1103,3228.3,3222.8,0.32426492]
[1642705878254,13.63683268,3228.6,3223.6,0.01261493]
[1642705878446,1.97532281,3228.6,3227.0,8.49690061]
[1642705878648,10.10367173,3229.8,3227.1,107.45913095]
[1642705878851,0.52969554,3233.7,3233.6,34.7111882]
[1642705879048,0.05,3236.1,3234.3,8.461691]
[1642705879049,0.01262117,3234.8,3234.3,8.461691]
[1642705879252,0.05,3236.1,3233.6,0.42109945]
[1642705879253,0.48305314,3238.4,3236.3,29.93162445]
[1642705879447,0.48305314,3238.4,3236.1,0.40024]
[1642705879448,0.0122478,3237.2,3236.1,0.40024]
[1642705879647,1.53933,3238.1,3236.3,0.043]
[1642705879846,0.1103,3237.6,3236.3,0.8359]
[1642705880045,1.53933,3238.1,3235.2,23.6438487]
[1642705880046,0.01239536,3236.8,3235.2,23.6438487]
[1642705880250,0.47405976,3238.4,3235.2,23.6438487]
[1642705880251,0.64542588,3240.4,3239.4,0.599997]
[1642705880532,11.18764817,3241.9,3237.7,0.2675]
[1642705880533,0.01239355,3239.5,3237.7,0.2675]
[1642705880736,0.00170527,3238.6,3238.2,6.04170337]
[1642705880940,0.87573691,3240.0,3239.6,2.27675379]
[1642705881139,1.0,3240.0,3239.8,5.35]
[1642705881330,4.91749167,3241.8,3239.9,5.3676]
[1642705881331,0.46256057,3241.2,3239.9,5.3676]
[1642705881532,0.46256057,3241.2,3239.9,0.7497]
[1642705881737,0.01307374,3241.7,3240.6,1.42208481]
[1642705881941,0.01307374,3241.7,3240.7,11.94798878]
[1642705882140,5.00402289,3243.2,3240.7,11.94798878]
[1642705882141,2.20957893,3243.1,3240.8,5.926208]
[1642705882334,0.0625,3242.8,3240.8,5.93132381]
[1642705882534,0.0625,3242.8,3240.9,0.45154739]
[1642705882535,0.00625266,3242.8,3240.9,0.45154739]
[1642705882734,1.50369076,3244.2,3242.7,0.10271499]
[1642705882934,1.50369076,3244.2,3242.7,0.9301]
[1642705883135,1.50369076,3244.2,3241.4,6.44]
[1642705883136,1.217e-05,3241.5,3241.4,6.44]
[1642705883335,0.00170527,3243.1,3242.6,0.1799]
[1642705883734,1.50369076,3244.2,3242.6,0.1799]
[1642705883735,0.00113685,3243.0,3242.9,1.15068254]
[1642705883933,0.00113685,3243.0,3242.6,1.227]
[1642705884172,0.0073895,3243.0,3242.8,3.5]
[1642705884567,1.50369076,3244.2,3243.0,6.25]
[1642705884969,1.26535645,3244.2,3243.1,29.61274723]
[1642705885270,1.26535645,3244.2,3242.9,3.5]
[1642705885271,0.13819997,3245.6,3244.6,0.68017449]
[1642705885470,0.13819997,3245.6,3244.7,10.8886]
[1642705885671,0.447,3245.5,3244.7,10.8886]
[1642705885870,0.13819997,3245.6,3244.7,10.8886]
[1642705886073,0.09725248,3246.2,3244.7,10.84065039]
[1642705886074,0.00738951,3245.4,3244.7,10.84065039]
[1642705886468,0.00682109,3245.3,3244.7,10.84065039]
[1642705886668,0.00682109,3245.3,3244.8,29.607063]
[1642705886868,0.00682109,3245.3,3244.7,10.84065039]
[1642705886869,0.00625266,3245.2,3244.7,10.84065039]
[1642705887269,0.00568424,3245.1,3244.7,10.84065039]
[1642705887472,58.05221926,3251.8,3244.7,10.84065039]
[1642705887473,0.64367003,3248.3,3245.0,3.5]
[1642705887674,0.447,3245.6,3245.1,2.51554268]
[1642705887888,0.447,3245.6,3245.0,3.5]
[1642705887889,0.00568423,3246.1,3245.0,3.5]
[1642705888092,2.51554268,3248.2,3245.2,29.607063]
[1642705888290,0.00284212,3246.0,3245.1,29.91353669]
[1642705888492,0.37,3245.9,3245.4,3.5]
[1642705888697,0.67939073,3248.3,3245.5,6.25]
[1642705888895,2.6041149,3249.6,3245.6,2.51554268]
[1642705889093,0.00629477,3247.5,3245.6,2.52004795]
[1642705889392,0.00629477,3247.5,3245.4,8.08649997]
[1642705889393,0.00572635,3247.4,3246.0,0.38436059]
[1642705889593,4.98264934,3248.8,3246.2,6.25]
[1642705889793,0.03684312,3248.9,3247.8,0.012]
[1642705889998,1.29654782,3248.0,3247.8,0.9438]
[1642705890195,1.29654782,3248.0,3247.8,2.605e-05]
[1642705890196,7.03009704,3248.0,3247.8,2.605e-05]
[1642705890493,0.00284212,3247.9,3247.8,2.605e-05]
[1642705890693,0.37,3247.9,3247.8,2.605e-05]
[1642705891093,0.37,3247.9,3246.3,11.34555266]
[1642705891300,0.84640425,3246.6,3245.4,0.13819997]
[1642705891497,2.51554268,3246.5,3244.2,3.0]
[1642705891765,0.03923685,3246.6,3244.2,3.0]
[1642705891972,0.03923685,3246.6,3243.0,1.163]
[1642705891973,4.629,3244.3,3243.0,1.163]
[1642705892176,4.629,3243.6,3243.0,1.163]